bitfinex/quotes_ETHUSD_20250821
["timestamp","ask_amount","ask_price","bid_price","bid_amount"]
[1755812084813,0.022,4263.8,4263.7,6.58703161]
[1755812086408,0.7981,4263.8,4263.7,5.34538077]
[1755812086732,0.7981,4263.8,4263.7,3.0]
[1755812087097,0.7981,4263.8,4263.7,5.34538077]
[1755812089427,0.022,4263.8,4263.7,5.51939941]
[1755812089599,0.7981,4263.8,4263.7,3.17401864]
[1755812090027,0.022,4263.8,4263.7,5.54285321]
[1755812090194,0.022,4263.8,4263.7,5.51939941]
[1755812091310,0.7981,4263.8,4263.7,5.51939941]
[1755812091632,0.7981,4263.8,4263.7,3.17401864]
[1755812092930,0.7981,4263.8,4263.7,3.12401864]
[1755812097105,0.7981,4263.8,4263.7,5.46939941]
[1755812097325,0.7981,4263.8,4263.7,3.12401864]
[1755812101560,0.3292,4263.8,4263.7,3.12401864]
[1755812101792,0.7981,4263.8,4263.7,3.12401864]
[1755812103954,9.33337462,4263.8,4263.7,2.95]
[1755812104250,9.33337462,4263.8,4263.7,0.57109375]
[1755812104451,9.33337462,4263.8,4261.8,0.02]
[1755812104452,0.93333746,4263.7,4261.8,0.02]
[1755812104751,8.17976462,4261.9,4261.8,0.02]
[1755812104938,13.97876462,4261.9,4261.8,0.02]
[1755812105137,14.44606462,4261.9,4261.8,0.02]
[1755812106419,6.5705,4261.9,4261.8,0.02]
[1755812106619,8.93192316,4261.9,4261.8,0.02]
[1755812106819,8.46462316,4261.9,4261.8,0.02]
[1755812107033,6.5705,4261.9,4261.8,0.02]
[1755812107947,6.5715,4261.9,4261.8,0.02]
[1755812108452,6.5725,4261.9,4261.8,0.02]
[1755812110146,7.2325,4261.9,4261.8,0.02]
[1755812111451,2.1082,4261.9,4261.8,0.02]
[1755812111752,6.1092,4261.9,4261.8,0.02]
[1755812112456,6.72012,4261.9,4261.8,0.02]
[1755812113858,7.18742,4261.9,4261.8,0.02]
[1755812114218,6.72012,4261.9,4261.8,0.02]
[1755812117226,2.1082,4261.9,4261.8,0.02]
[1755812117426,6.1062,4261.9,4261.8,0.02]
[1755812119240,6.1052,4261.9,4261.8,0.02]
[1755812120166,2.1082,4261.9,4261.8,0.02]
[1755812120369,6.1052,4261.9,4261.8,0.02]
[1755812121641,2.1082,4261.9,4261.8,0.02]
[1755812121968,2.1082,4261.9,4261.8,0.7597]
[1755812121969,1.804,4261.9,4261.8,0.7597]
[1755812122264,5.801,4261.9,4261.8,0.7597]
[1755812122768,1.804,4261.9,4261.8,6.10612639]
[1755812123084,1.804,4261.9,4261.8,6.41919508]
[1755812123085,3.997,4261.9,4261.8,6.41919508]
[1755812125567,6.32171,4263.8,4262.2,2.34616414]
[1755812125853,6.32171,4263.8,4261.8,4.07276869]
[1755812125854,0.022,4263.8,4263.6,0.3061]
[1755812126056,0.022,4263.8,4263.7,5.77898077]
[1755812126259,0.022,4263.8,4263.7,6.08508077]
[1755812127072,0.022,4263.8,4263.7,6.74508077]
[1755812127270,0.002,4264.7,4264.6,2.3448858]
[1755812127488,0.002,4264.7,4264.6,5.67443465]
[1755812127706,0.002,4264.7,4264.6,6.0845858]
[1755812128980,0.002,4264.7,4264.6,3.0]
[1755812129179,4.001,4264.7,4264.6,3.0]
[1755812129375,4.4078,4264.7,4264.6,3.0]
[1755812130603,4.8748,4264.7,4264.6,3.0]
[1755812133102,4.4078,4264.7,4264.6,3.0]
[1755812134062,0.4088,4264.7,4264.6,3.0]
[1755812134288,4.002,4264.7,4264.6,3.0]
[1755812136204,4.2906,4264.7,4264.6,3.0]
[1755812136904,0.002,4264.7,4264.6,3.3061]
[1755812137074,0.002,4264.7,4264.6,6.0845858]
[1755812137075,3.997,4264.7,4264.6,6.0845858]
[1755812137476,3.998,4264.7,4264.6,6.0845858]
[1755812137975,3.998,4264.7,4264.6,6.0345858]
[1755812138284,3.997,4264.7,4264.6,6.0345858]
[1755812139284,0.002,4264.7,4264.6,6.0345858]
[1755812140186,0.002,4264.7,4264.6,6.7395958]
[1755812141079,0.002,4264.7,4264.6,7.64805329]
[1755812144923,0.002,4264.7,4264.6,7.21445329]
[1755812145121,0.002,4264.7,4264.6,6.3059958]
[1755812145422,0.002,4264.7,4264.6,6.7544958]
[1755812147889,0.002,4264.7,4264.6,6.3059958]
[1755812148723,0.002,4264.7,4264.6,6.7544958]
[1755812148924,0.002,4264.7,4264.6,7.66444262]
[1755812152030,0.002,4264.7,4264.6,5.9998958]
[1755812152328,0.002,4264.7,4264.6,6.2881958]
[1755812152533,0.002,4264.7,4264.6,5.9998958]
[1755812152700,0.002,4264.7,4264.6,6.2881958]
[1755812153533,0.002,4264.7,4264.6,5.9998958]
[1755812153738,0.002,4264.7,4264.6,6.2881958]
[1755812155301,0.002,4264.7,4264.6,5.2948858]
[1755812155811,0.002,4264.7,4264.6,5.5831858]
[1755812156925,0.002,4264.7,4264.6,5.2948858]
[1755812157907,0.002,4264.7,4263.4,0.4485]
[1755812157908,0.7734,4264.7,4263.4,0.4485]
[1755812158244,0.47864,4264.6,4264.0,2.3452142]
[1755812158439,0.3074,4264.1,4263.5,7.04361267]
[1755812158642,0.3074,4264.1,4263.8,2.34631051]
[1755812158812,0.3074,4264.1,4263.9,2.34525763]
[1755812159622,0.3074,4264.1,4263.9,5.34525763]
[1755812160361,0.3074,4264.1,4263.8,0.17446449]
[1755812160657,0.89414,4264.0,4263.8,0.17446449]
[1755812160810,6.5685,4263.9,4263.8,0.17446449]
[1755812161219,6.5685,4263.9,4263.8,0.001]
[1755812162358,2.5755,4263.9,4263.8,0.001]
[1755812162567,6.5685,4263.9,4263.8,0.001]
[1755812162717,7.268354,4263.9,4263.8,0.001]
[1755812163413,3.275354,4263.9,4263.8,0.001]
[1755812163618,2.5755,4263.9,4263.8,0.001]
[1755812163849,6.5685,4263.9,4263.8,0.001]
[1755812168379,7.2285,4263.9,4263.8,0.001]
[1755812169238,37.2285,4263.9,4263.8,0.001]
[1755812169443,37.73294222,4263.9,4263.8,0.001]
[1755812169648,40.44590226,4263.9,4263.8,0.001]
[1755812169964,40.44590026,4263.9,4263.8,0.001]
[1755812170169,40.09508185,4263.9,4263.8,0.001]
[1755812170767,10.09508185,4263.9,4263.8,0.001]
[1755812170967,37.73294222,4263.9,4263.8,0.001]
[1755812171491,33.2355,4263.9,4263.8,0.001]
[1755812171678,37.2295,4263.9,4263.8,0.001]
[1755812176384,33.2355,4263.9,4263.8,0.001]
[1755812176580,37.2295,4263.9,4263.8,0.001]
[1755812176771,39.59163963,4263.9,4263.8,0.001]
[1755812177689,35.13353963,4263.9,4263.8,0.001]
[1755812177892,9.56463963,4263.9,4263.8,0.001]
[1755812178065,7.2025,4263.9,4263.8,0.001]
[1755812180861,6.7654,4263.9,4263.8,0.001]
[1755812181182,37.2025,4263.9,4263.8,0.001]
[1755812182266,45.08409391,4263.9,4263.8,0.001]
[1755812183292,45.08509391,4263.9,4263.8,0.001]
[1755812183490,47.44723354,4263.9,4263.8,0.001]
[1755812187304,47.9517293,4263.9,4263.8,0.001]
[1755812188310,48.30264693,4263.9,4263.8,0.001]
[1755812189691,48.08332341,4263.9,4263.8,0.001]
[1755812190004,48.30307071,4263.9,4263.8,0.001]
[1755812190317,53.94508019,4263.9,4263.8,0.001]
[1755812191490,53.50798019,4263.9,4263.8,0.001]
[1755812192494,23.50798019,4263.9,4263.8,0.001]
[1755812192699,50.57912317,4263.9,4263.8,0.001]
[1755812193018,54.57312317,4263.9,4263.8,0.001]
[1755812193221,53.94408019,4263.9,4263.8,0.001]
[1755812193601,49.51298019,4263.9,4263.8,0.001]
[1755812193799,53.94408019,4263.9,4263.8,0.001]
[1755812195115,55.20807201,4263.9,4263.8,0.001]
[1755812196727,25.20807201,4263.9,4263.8,0.001]
[1755812196931,55.20807201,4263.9,4263.8,0.001]
[1755812197132,53.50698019,4263.9,4263.8,0.001]
[1755812197308,54.7746685,4263.9,4263.8,0.001]
[1755812197631,53.50698019,4263.9,4263.8,0.001]
[1755812198131,54.7746685,4263.9,4263.8,0.001]
[1755812198499,55.2387685,4263.9,4263.8,0.001]
[1755812198704,25.2387685,4263.9,4263.8,0.001]
[1755812198931,55.01918041,4263.9,4263.8,0.001]
[1755812199131,55.23973428,4263.9,4263.8,0.001]
[1755812199421,55.01955119,4263.9,4263.8,0.001]
[1755812199626,55.23977383,4263.9,4263.8,0.001]
[1755812199834,25.23977383,4263.9,4263.8,0.001]
[1755812200025,55.23977383,4263.9,4263.8,0.001]
[1755812202154,55.23975026,4263.9,4263.8,0.001]
[1755812202512,51.24575026,4263.9,4263.8,0.001]
[1755812202843,54.77565026,4263.9,4263.8,0.001]
[1755812203748,54.7784652,4263.9,4263.8,0.001]
[1755812203935,24.7784652,4263.9,4263.8,0.001]
[1755812204132,54.7784652,4263.9,4263.8,0.001]
[1755812207449,53.51077689,4263.9,4263.8,0.001]
[1755812208455,53.5107302,4263.9,4263.8,0.001]
[1755812208758,53.51073347,4263.9,4263.8,0.001]
[1755812211333,53.5107878,4263.9,4263.8,0.001]
[1755812214889,49.5167878,4263.9,4263.8,0.001]
[1755812215094,53.2013878,4263.9,4263.8,0.2893]
[1755812215290,53.2013878,4263.9,4263.5,0.4371]
[1755812215291,0.66,4263.8,4263.5,0.4371]
[1755812215598,8.71952027,4263.7,4263.6,0.4371]
[1755812215800,46.60111418,4263.7,4263.6,0.2883]
[1755812216001,46.60111418,4263.7,4263.3,0.001]
[1755812216167,1.29429524,4263.4,4263.3,0.001]
[1755812216373,5.6386388,4263.4,4263.3,0.2893]
[1755812216563,7.17118231,4263.4,4263.3,0.2893]
[1755812216760,3.17918231,4263.4,4263.3,0.2893]
[1755812216996,7.17118231,4263.4,4263.3,0.001]
[1755812217215,6.53688707,4263.4,4263.3,0.001]
[1755812217374,6.31667234,4263.4,4263.3,0.001]
[1755812217574,6.53699442,4263.4,4263.3,0.001]
[1755812217771,0.66,4263.3,4262.9,0.001]
[1755812218073,8.82969391,4263.0,4262.9,0.001]
[1755812218267,8.82969391,4263.0,4261.6,0.001]
[1755812218268,0.66,4262.9,4261.6,0.001]
[1755812218472,8.54159391,4261.9,4261.6,0.001]
[1755812218701,21.12844072,4261.9,4261.6,0.001]
[1755812219084,21.59294072,4261.9,4261.6,0.001]
[1755812219312,0.66,4261.8,4261.6,0.001]
[1755812219479,35.92693555,4261.7,4261.6,0.001]
[1755812219682,36.89874625,4261.7,4261.6,0.001]
[1755812221284,36.26434681,4261.7,4261.6,0.001]
[1755812221918,0.97176593,4261.6,4259.8,0.02]
[1755812222214,7.88159391,4259.9,4259.8,0.02]
[1755812222388,13.67759391,4259.9,4259.8,0.3083]
[1755812223213,14.33759391,4259.9,4259.8,0.3083]
[1755812223771,44.62569391,4259.9,4259.8,0.02]
[1755812223992,46.11542672,4259.9,4259.8,0.02]
[1755812224213,46.49589331,4259.9,4259.8,0.02]
[1755812224419,46.61339497,4259.9,4259.8,0.02]
[1755812224617,46.61339497,4259.9,4257.6,0.001]
[1755812224618,30.66,4259.8,4257.6,0.001]
[1755812224821,0.66,4258.8,4257.6,0.2111]
[1755812224983,7.88159391,4257.9,4257.6,0.5194]
[1755812225328,14.33959391,4257.9,4257.6,0.001]
[1755812225507,0.66,4257.8,4257.6,0.001]
[1755812225685,0.66,4257.6,4256.3,0.5194]
[1755812226018,0.66,4257.6,4255.8,0.02]
[1755812226019,30.66,4256.8,4255.8,0.02]
[1755812226192,8.82969391,4256.9,4255.8,0.02]
[1755812226193,7.88159391,4255.9,4255.8,0.02]
[1755812226525,14.33959391,4255.9,4255.8,0.3083]
[1755812227019,14.33959391,4255.9,4254.8,0.02]
[1755812227020,30.66,4255.8,4254.8,0.02]
[1755812227228,14.54858313,4255.9,4253.4,0.3083]
[1755812227229,30.66,4254.8,4253.4,0.3083]
[1755812227522,7.88159391,4254.3,4253.7,0.2101]
[1755812227724,7.88159391,4253.9,4253.1,0.3083]
[1755812227907,7.88159391,4253.9,4253.2,0.2101]
[1755812227908,11.88859391,4253.9,4253.2,0.2101]
[1755812228224,12.85499391,4253.9,4252.4,0.001]
[1755812228385,17.1201473,4252.9,4252.5,0.3083]
[1755812228594,25.31016203,4252.9,4252.4,0.001]
[1755812228906,26.06416203,4252.9,4252.4,0.001]
[1755812229106,56.06416203,4252.9,4252.4,0.001]
[1755812229421,56.06416203,4252.9,4252.0,0.001]
[1755812229422,3.66,4252.8,4252.0,0.001]
[1755812229626,18.0865473,4252.1,4252.0,0.001]
[1755812229830,61.13048501,4252.1,4252.0,0.001]
[1755812230035,75.98355323,4252.1,4252.0,0.001]
[1755812230397,71.95655323,4252.1,4252.0,0.001]
[1755812230738,76.00255323,4252.1,4252.0,0.001]
[1755812230920,0.66,4251.9,4251.4,0.001]
[1755812231106,0.66,4251.9,4249.7,0.001]
[1755812231107,33.0,4251.4,4249.7,0.001]
[1755812231297,2.7724,4251.0,4249.7,0.001]
[1755812231498,32.7724,4251.0,4249.7,0.001]
[1755812231723,65.0151473,4251.0,4249.7,0.001]
[1755812231934,65.78278219,4251.0,4249.7,0.001]
[1755812232116,68.14492182,4251.0,4249.7,0.001]
[1755812232318,68.14492182,4251.0,4248.8,0.02]
[1755812232319,3.66,4250.1,4247.8,0.114387]
[1755812232518,0.66,4247.8,4245.8,0.02]
[1755812232747,17.7801473,4246.9,4245.8,0.02]
[1755812232942,23.7051473,4246.9,4245.8,0.02]
[1755812233232,21.29916203,4246.9,4245.8,0.02]
[1755812233401,25.41616203,4246.9,4245.8,0.02]
[1755812233799,21.29916203,4246.9,4245.8,0.02]
[1755812234056,30.66,4246.8,4244.4,0.2121]
[1755812234200,17.1201473,4245.7,4244.4,0.2121]
[1755812234515,7.456,4245.6,4244.9,0.2121]
[1755812234700,5.964,4245.5,4244.9,0.2121]
[1755812235035,1.809,4245.7,4245.5,0.297]
[1755812235237,5.653,4247.6,4245.6,0.23565379]
[1755812235408,5.97,4247.5,4245.8,2.35521354]
[1755812235610,1.809,4247.4,4246.6,2.35478677]
[1755812235810,1.809,4247.4,4245.9,0.23552135]
[1755812235811,1.809,4247.6,4247.3,0.0707]
[1755812236022,1.809,4248.1,4248.0,2.35404896]
[1755812236203,5.653,4249.2,4248.5,2.35376173]
[1755812236531,5.653,4249.2,4246.9,2.35460606]
[1755812236532,1.809,4249.3,4248.7,2.35366111]
[1755812236745,1.809,4249.2,4248.8,0.26125588]
[1755812236900,1.809,4249.2,4248.0,2.35404896]
[1755812236901,4.167,4249.1,4249.0,2.35349493]
[1755812237099,1.809,4249.3,4249.2,2.35338416]
[1755812237337,1.809,4249.7,4248.5,3.0]
[1755812237540,4.166,4249.6,4249.5,2.35321802]
[1755812237902,5.653,4251.4,4249.6,2.35310806]
[1755812238106,5.653,4251.4,4249.2,3.01338416]
[1755812238107,5.978,4251.3,4250.1,3.0]
[1755812238327,5.978,4251.3,4250.5,2.35262807]
[1755812238647,0.38057729,4253.0,4249.7,0.23531081]
[1755812238648,5.979,4251.2,4250.6,0.02352609]
[1755812238803,5.979,4251.1,4250.5,2.35266041]
[1755812238999,5.979,4251.0,4250.6,0.02352609]
[1755812239213,1.81,4251.0,4250.7,5.37607922]
[1755812239413,1.81,4251.7,4250.9,3.0]
[1755812239652,5.656,4252.5,4250.6,3.29754603]
[1755812239653,4.173,4251.6,4250.6,0.707363]
[1755812239855,4.173,4251.5,4250.6,0.707363]
[1755812240657,4.173,4251.5,4248.5,3.0]
[1755812240835,4.177,4251.4,4249.3,3.0]
[1755812241043,4.177,4251.4,4250.1,0.707507]
[1755812241571,0.02,4250.8,4250.1,0.707507]
[1755812241868,5.987,4250.7,4250.1,0.707507]
[1755812242167,5.987,4250.7,4249.3,2.35328017]
[1755812242470,5.987,4250.7,4249.6,0.707595]
[1755812243359,5.987,4250.7,4249.3,3.0]
[1755812243360,6.7646,4250.6,4248.4,2.35377564]
[1755812243533,0.66,4250.4,4248.0,2.35399534]
[1755812243788,0.66,4250.2,4248.7,0.707746]
[1755812243996,0.66,4250.0,4248.0,2.35403289]
[1755812244268,0.66,4249.8,4247.4,2.35434209]
[1755812244477,0.66,4249.8,4247.4,2.3543815]
[1755812244838,0.66,4249.6,4247.2,0.66]
[1755812245069,4.6206,4249.5,4247.2,0.66]
[1755812245253,0.66,4249.3,4247.2,0.66]
[1755812245458,0.66,4249.1,4247.2,0.66]
[1755812245673,0.66,4248.9,4246.5,2.35486802]
[1755812245845,6.4296,4249.0,4246.4,0.661]
[1755812245846,0.66,4248.7,4246.4,0.661]
[1755812246040,4.171,4248.6,4246.8,2.35471413]
[1755812246241,1.09356,4248.5,4246.8,2.35471413]
[1755812246545,1.09356,4248.5,4246.4,3.661]
[1755812246751,1.09356,4248.5,4246.9,2.35465584]
[1755812247371,1.09356,4248.5,4246.6,5.35479979]
[1755812247548,1.09356,4248.5,4246.8,2.35470995]
[1755812247747,1.09356,4248.5,4246.5,5.35488048]
[1755812247748,0.592456,4248.4,4246.7,2.35476958]
[1755812247972,0.592456,4248.4,4246.9,0.02354658]
[1755812248171,0.592456,4248.4,4247.0,2.35459421]
[1755812248377,4.166,4248.3,4247.1,2.35454253]
[1755812248579,1.81,4248.2,4246.9,2.35460668]
[1755812248745,2.5762016,4248.2,4247.0,2.3545844]
[1755812249079,2.5762016,4248.2,4246.4,0.661]
[1755812249080,1.81,4248.2,4246.9,3.0]
[1755812249275,4.13014334,4251.4,4248.7,2.35364463]
[1755812249276,1.81,4248.8,4248.7,2.35364463]
[1755812249579,5.975,4248.8,4248.7,2.35366111]
[1755812250077,0.002,4249.0,4248.7,2.37719772]
[1755812250280,0.002,4249.0,4248.9,2.35355033]
[1755812250478,0.002,4249.0,4248.9,6.12662514]
[1755812251039,0.002,4249.0,4248.9,3.0]
[1755812251040,4.17,4249.0,4248.9,3.0]
[1755812251242,4.17,4249.0,4246.8,0.001]
[1755812251243,4.173,4249.0,4246.8,0.001]
[1755812251443,1.811,4248.9,4246.8,0.001]
[1755812251638,1.811,4248.9,4247.8,2.35413361]
[1755812251837,1.811,4248.9,4247.0,3.0]
[1755812252071,1.811,4248.9,4247.2,2.35449237]
[1755812252287,1.811,4248.9,4248.0,2.35399509]
[1755812252683,1.811,4248.9,4248.1,2.35398765]
[1755812252860,1.811,4248.9,4247.3,3.0]
[1755812253058,1.811,4248.9,4247.8,2.35415332]
[1755812253277,1.811,4248.9,4247.1,0.3661]
[1755812253582,1.811,4248.9,4248.0,2.35404477]
[1755812253761,1.811,4248.9,4247.4,0.70785]
[1755812254153,13.64283252,4248.6,4246.8,0.001]
[1755812254355,0.66,4247.8,4246.8,0.001]
[1755812254561,0.66,4247.6,4246.8,0.001]
[1755812254756,8.02113963,4247.5,4246.8,0.001]
[1755812254990,8.46873963,4247.5,4246.8,0.001]
[1755812255169,0.66,4247.3,4246.8,0.001]
[1755812255371,30.66,4246.8,4244.1,0.499]
[1755812255596,0.66,4246.3,4244.1,0.499]
[1755812255757,30.0,4246.4,4244.1,0.499]
[1755812255758,0.66,4245.4,4244.1,0.499]
[1755812255958,0.66,4245.2,4244.1,0.593475]
[1755812256360,0.66,4245.0,4244.1,0.593475]
[1755812256586,4.183,4244.9,4244.1,0.593475]
[1755812256780,4.183,4244.9,4244.1,0.499]
[1755812256967,7.471,4245.3,4244.1,0.499]
[1755812257185,4.183,4244.9,4244.2,3.0]
[1755812257654,4.183,4244.9,4244.1,0.499]
[1755812257861,4.183,4244.9,4243.8,0.613475]
[1755812258068,7.471,4245.3,4243.9,0.02356323]
[1755812258277,4.183,4244.9,4244.5,2.35594932]
[1755812258496,7.471,4245.3,4244.6,0.02355934]
[1755812258758,4.182,4244.9,4244.7,2.35587588]
[1755812259057,4.182,4244.9,4244.8,2.37582359]
[1755812259316,4.182,4244.9,4244.8,0.02]
[1755812259603,4.184,4244.9,4244.8,0.02]
[1755812259793,7.471,4245.3,4244.8,0.02]
[1755812259966,4.181,4245.2,4244.8,0.02]
[1755812260166,7.471,4245.3,4244.8,0.02]
[1755812260369,4.181,4245.2,4244.8,0.02]
[1755812260994,7.471,4245.3,4244.8,0.02]
[1755812261175,1.811,4245.3,4245.2,2.35560162]
[1755812261377,5.991,4245.3,4245.2,6.12703024]
[1755812261576,5.991,4245.3,4245.2,5.35560162]
[1755812262674,1.811,4245.3,4245.2,5.35560162]
[1755812262874,1.811,4245.3,4245.2,5.35860162]
[1755812263673,1.812,4245.9,4245.3,3.0]
[1755812263877,1.812,4245.9,4245.8,2.35526873]
[1755812264103,5.993,4245.9,4245.8,2.35526873]
[1755812264594,5.993,4245.9,4245.7,0.708277]
[1755812264805,4.179,4245.8,4245.7,6.06359229]
[1755812265309,1.812,4245.9,4245.8,2.35526873]
[1755812265479,5.991,4245.9,4245.8,5.35526873]
[1755812266306,5.991,4245.9,4245.7,0.708277]
[1755812266307,5.991,4245.9,4245.7,2.35529867]
[1755812266611,5.991,4245.9,4245.8,5.35526873]
[1755812267111,5.99,4245.9,4245.8,5.35526873]
[1755812267474,1.812,4247.2,4247.1,2.35454431]
[1755812267691,1.812,4247.2,4245.9,5.35521326]
[1755812267692,5.99,4247.2,4246.1,0.66]
[1755812267991,1.812,4247.2,4247.1,2.3545478]
[1755812268312,5.992,4247.2,4247.1,2.3545478]
[1755812268690,5.991,4247.2,4247.1,2.3545478]
[1755812269104,5.99,4247.2,4247.1,2.3545478]
[1755812269415,1.812,4247.2,4247.1,2.3545478]
[1755812269610,5.988,4247.2,4247.1,2.37809327]
[1755812269818,1.812,4247.2,4247.1,2.3545478]
[1755812270123,5.987,4247.2,4247.1,2.37809327]
[1755812270322,5.987,4247.2,4247.1,2.3545478]
[1755812270887,5.985,4247.2,4247.1,2.3545478]
[1755812271227,5.985,4247.2,4247.1,2.3593478]
[1755812272321,5.985,4247.2,4247.1,6.1307451]
[1755812272322,1.812,4247.2,4247.1,6.1307451]
[1755812272522,1.812,4247.2,4247.1,5.3593478]
[1755812274020,1.812,4247.8,4247.7,2.35420033]
[1755812274216,5.977,4247.8,4247.7,2.35420033]
[1755812274720,5.977,4247.8,4247.7,6.06208233]
[1755812275227,1.812,4247.8,4247.7,6.06208233]
[1755812275436,5.975,4247.8,4247.7,6.06208233]
[1755812276292,1.812,4247.8,4247.7,6.06208233]
[1755812276534,5.973,4247.8,4247.7,6.06208233]
[1755812277549,1.812,4247.8,4247.7,6.06208233]
[1755812277742,5.973,4247.8,4247.7,6.06208233]
[1755812278452,1.812,4247.8,4247.7,6.06208233]
[1755812278651,5.97,4247.8,4247.7,6.90372082]
[1755812278850,5.97,4247.8,4247.7,6.90852082]
[1755812279051,0.4277,4248.6,4248.5,2.35377191]
[1755812279256,1.812,4248.8,4247.9,0.02354104]
[1755812279453,4.155,4248.7,4248.6,2.35371651]
[1755812279749,1.812,4248.8,4248.7,2.35366111]
[1755812280554,6.6857,4248.8,4247.9,2.35409014]
[1755812280754,6.6857,4248.8,4247.7,0.707882]
[1755812280755,0.4277,4248.7,4247.7,3.06207322]
[1755812280969,0.4277,4248.7,4247.8,5.3541598]
[1755812281154,0.4277,4248.7,4247.8,2.35415767]
[1755812281453,0.4277,4248.7,4247.7,0.707882]
[1755812281860,0.4277,4248.7,4248.3,2.35387877]
[1755812282027,0.293,4248.4,4248.1,2.35396953]
[1755812282226,4.153,4248.3,4248.0,2.35400233]
[1755812282422,1.812,4248.8,4247.8,2.3541598]
[1755812282423,1.812,4248.8,4247.8,3.0]
[1755812282759,4.152,4248.7,4248.5,2.35373058]
[1755812282957,1.812,4248.8,4248.6,2.35371651]
[1755812283158,4.152,4248.7,4248.6,2.35371651]
[1755812283857,1.812,4248.8,4248.6,2.35371651]
[1755812284032,4.15,4248.7,4248.0,3.0]
[1755812284232,4.15,4248.7,4247.8,0.3707882]
[1755812284233,4.152,4248.7,4247.9,3.0]
[1755812284445,4.152,4248.7,4247.8,0.3707882]
[1755812284783,4.152,4248.7,4248.5,2.35375608]
[1755812285070,0.7207,4248.6,4247.7,0.707882]
[1755812285266,0.7207,4248.6,4248.2,2.35391156]
[1755812285767,0.7207,4248.6,4248.3,2.35387172]
[1755812287542,0.7207,4248.6,4248.1,2.3539824]
[1755812287737,4.152,4248.7,4247.8,0.02]
[1755812287940,0.002,4248.7,4248.6,2.35371651]
[1755812288188,0.002,4248.7,4248.6,2.35851651]
[1755812289484,0.002,4248.7,4248.6,6.04205367]
[1755812289690,0.002,4248.7,4248.6,6.02151651]
[1755812289915,1e-08,4248.7,4248.6,7.27354738]
[1755812290214,0.002,4249.5,4249.4,3.0132734]
[1755812290524,0.002,4249.5,4249.4,6.04160613]
[1755812290725,1e-08,4249.6,4249.5,6.01321802]
[1755812290875,4.144,4250.7,4249.8,3.0130519]
[1755812291076,4.144,4250.7,4249.8,6.68725335]
[1755812291330,1.811,4251.0,4250.7,2.35255369]
[1755812291677,5.661,4252.4,4250.7,2.35735369]
[1755812291678,1.811,4251.7,4250.7,2.35735369]
[1755812291910,1.811,4251.7,4250.7,6.04087922]
[1755812292212,1e-08,4250.8,4250.7,10.16235369]
[1755812292415,1e-08,4250.8,4250.7,11.20171721]
[1755812292725,0.02,4252.8,4251.7,3.01200037]
[1755812292928,0.02,4252.8,4251.7,10.15980037]
[1755812294383,0.02,4252.8,4251.7,10.16280037]
[1755812295186,0.02,4252.8,4252.7,2.35144731]
[1755812295386,0.02,4252.8,4252.7,5.35144731]
[1755812296526,0.4849,4252.8,4252.7,5.35144731]
[1755812297029,0.02,4252.8,4252.7,5.35144731]
[1755812298616,0.02,4252.8,4252.7,6.05842831]
[1755812301625,0.02,4252.8,4252.7,6.72322831]
[1755812301821,0.02,4252.8,4252.7,12.16840478]
[1755812303088,0.002,4253.7,4253.6,2.35094978]
[1755812303518,0.002,4253.7,4253.6,2.37445927]
[1755812303727,0.002,4253.7,4253.6,5.83935927]
[1755812303903,0.002,4253.7,4253.6,10.60364978]
[1755812304105,0.002,4253.7,4253.6,10.84371477]
[1755812305921,1e-08,4253.8,4253.7,6.01089451]
[1755812306231,1e-08,4253.8,4253.7,6.01869451]
[1755812306406,1e-08,4253.8,4253.7,7.82769451]
[1755812306805,0.02,4254.8,4254.7,3.01034197]
[1755812307016,0.02,4254.8,4254.7,10.66541788]
[1755812307217,0.4649,4255.5,4254.8,3.0]
[1755812307419,0.4649,4255.5,4255.4,2.34995535]
[1755812307630,0.7806,4255.5,4255.4,2.34995535]
[1755812308200,0.4849,4255.8,4255.7,2.34978969]
[1755812308402,0.3357,4255.8,4255.7,2.37328758]
[1755812309038,0.8006,4255.8,4255.7,2.34978969]
[1755812309341,0.8006,4255.8,4255.1,2.35007444]
[1755812309342,0.8006,4255.8,4252.8,1.809]
[1755812309542,0.4649,4255.7,4254.7,2.35033417]
[1755812309699,0.4649,4255.7,4254.9,5.35019361]
[1755812309901,0.4649,4255.7,4255.0,2.35017515]
[1755812310097,0.3157,4255.1,4255.0,2.35017515]
[1755812310448,0.7806,4255.1,4254.5,3.0]
[1755812310736,0.7806,4255.1,4254.5,5.35044676]
[1755812310737,0.4649,4255.0,4254.5,5.35044676]
[1755812310945,0.3157,4254.6,4254.5,2.35044676]
[1755812311162,0.7806,4254.6,4254.4,3.0]
[1755812311334,2.5896,4254.6,4252.5,4.16050395]
[1755812311654,2.5896,4254.6,4253.4,2.35105835]
[1755812311655,0.4649,4254.5,4253.4,2.35105835]
[1755812311951,0.3157,4253.7,4253.4,2.35105835]
[1755812312147,0.3157,4253.7,4253.5,2.35098991]
[1755812312363,0.7806,4253.7,4253.6,2.99137623]
[1755812312530,0.7806,4253.7,4253.6,5.99137623]
[1755812312868,0.7806,4253.7,4253.6,3.64042645]
[1755812313078,0.7806,4253.7,4253.6,5.99137623]